bitfinex/quotes_ETHUSD_20240924
["timestamp","ask_amount","ask_price","bid_price","bid_amount"]
[1727199229346,6.05515405,2646.0,2645.9,0.0379568]
[1727199230814,6.11408517,2646.0,2645.9,0.0379568]
[1727199230992,6.05515405,2646.0,2645.9,0.0379568]
[1727199231283,6.11408517,2646.0,2645.9,0.0379568]
[1727199231455,6.05515405,2646.0,2645.9,0.0379568]
[1727199231663,6.11408517,2646.0,2645.9,0.0379568]
[1727199233154,6.05515405,2646.0,2645.9,0.0379568]
[1727199234721,12.24963411,2646.0,2645.9,0.0379568]
[1727199235025,12.19070299,2646.0,2645.9,0.0379568]
[1727199235782,9.05515405,2646.0,2645.9,0.0379568]
[1727199236234,3.77897,2646.3,2645.9,0.0379568]
[1727199236387,0.7742,2646.4,2645.9,0.0379568]
[1727199236589,3.77908,2646.2,2645.9,0.0379568]
[1727199236996,3.77928,2646.0,2645.9,0.0379568]
[1727199237321,3.77922,2646.1,2645.9,0.0379568]
[1727199238027,3.77928,2646.0,2645.9,0.0379568]
[1727199241823,8.56491528,2647.1,2646.4,0.7833]
[1727199242181,1.57991444,2647.3,2645.9,3.8970639]
[1727199242182,3.77758,2647.2,2646.8,0.7833]
[1727199242464,3.77752,2647.3,2646.8,0.7833]
[1727199242761,3.778,2646.9,2646.8,0.7833]
[1727199243054,3.77786,2647.0,2646.3,0.7833]
[1727199243055,3.77816,2646.8,2646.3,0.7833]
[1727199243754,3.77843,2646.6,2646.3,0.7833]
[1727199244255,3.77871,2646.4,2646.3,0.7833]
[1727199244938,3.77859,2646.5,2646.3,0.7833]
[1727199246845,3.77871,2646.4,2646.3,0.7833]
[1727199247028,3.77859,2646.5,2646.3,0.7833]
[1727199247434,3.77838,2646.7,2646.3,0.7833]
[1727199247628,4.96307528,2646.8,2646.3,4.56207]
[1727199247828,3.77806,2646.9,2646.3,4.56207]
[1727199248052,3.77806,2646.9,2646.3,8.34083]
[1727199248353,3.77806,2646.9,2646.3,4.56206]
[1727199248558,3.77806,2646.9,2646.3,8.34084]
[1727199248760,1.18491528,2647.0,2646.3,5.396144]
[1727199249367,4.96298528,2646.9,2646.3,9.174924]
[1727199249523,4.96298528,2646.9,2646.3,8.34084]
[1727199249770,4.96298528,2646.9,2646.3,4.56206]
[1727199249974,3.77807,2646.9,2646.4,3.7787]
[1727199250181,4.96298528,2646.9,2646.4,3.7787]
[1727199250706,8.74113528,2646.9,2646.3,4.56208]
[1727199250923,3.77816,2646.8,2646.3,4.56208]
[1727199251206,3.77816,2646.8,2646.3,8.34087]
[1727199251503,4.96299528,2646.9,2646.4,3.77869]
[1727199252008,1.18491528,2646.9,2646.5,3.7785]
[1727199252203,1.18491528,2646.9,2646.6,0.8178]
[1727199252370,4.96292528,2646.9,2646.6,0.8178]
[1727199254206,3.77801,2646.9,2646.6,0.8178]
[1727199254782,4.96292528,2646.9,2646.6,0.8178]
[1727199255093,3.77801,2646.9,2646.6,0.8178]
[1727199255828,4.57256,2647.3,2646.6,0.8178]
[1727199255829,1.18491528,2647.7,2647.4,0.8178]
[1727199256036,1.18607671,2647.9,2647.4,0.8178]
[1727199256181,5.01646,2648.0,2647.6,3.777]
[1727199256514,5.01646,2648.0,2647.5,3.77708]
[1727199256683,3.77682,2647.8,2647.4,4.59508]
[1727199256880,3.77682,2647.8,2647.4,0.8178]
[1727199257216,5.0165,2648.0,2647.5,3.77707]
[1727199257881,5.0165,2648.0,2647.6,3.77698]
[1727199258078,5.0165,2648.0,2647.5,3.77707]
[1727199258516,1.24,2648.0,2647.5,3.77707]
[1727199258938,8.79296,2648.0,2647.5,3.77707]
[1727199259082,8.79297,2648.0,2647.5,3.77707]
[1727199259493,5.895787,2648.0,2647.4,4.59505]
[1727199259713,1.24,2648.0,2647.4,3.94713382]
[1727199259899,1.24,2648.0,2647.3,3.77737]
[1727199259900,1.24,2648.0,2647.9,0.8178]
[1727199262832,3.7766,2647.9,2647.6,0.8178]
[1727199262995,7.55329,2647.9,2647.6,0.8178]
[1727199263189,3.7768,2647.8,2647.3,0.8178]
[1727199263885,3.7766,2647.9,2647.3,0.8178]
[1727199263886,3.77686,2647.7,2647.3,0.8178]
[1727199264321,3.77686,2647.7,2647.3,4.5952]
[1727199264527,3.77667,2647.9,2647.3,4.5952]
[1727199265032,3.77672,2647.8,2647.3,4.5952]
[1727199265189,7.55352,2647.8,2647.3,4.5952]
[1727199265633,3.77686,2647.7,2647.3,4.5952]
[1727199265937,1.24,2648.0,2647.3,0.8178]
[1727199266087,5.01655,2648.0,2647.5,3.77706]
[1727199267435,5.01655,2648.0,2647.5,7.55412]
[1727199267593,1.24,2648.0,2647.6,3.77696]
[1727199267916,5.01643,2648.0,2647.9,0.5]
[1727199268118,1.24,2648.0,2647.9,1.3178]
[1727199269731,1.24,2648.0,2647.9,0.5]
[1727199270099,5.01643,2648.0,2647.9,0.5]
[1727199270293,1.24,2648.0,2647.9,0.5]
[1727199271021,1.24,2648.1,2647.9,0.5]
[1727199271839,1.24,2648.1,2647.9,1.0]
[1727199271997,1.24,2648.1,2647.9,4.77655]
[1727199272193,1.24,2648.1,2647.9,1.0]
[1727199274505,3.77643,2648.0,2647.9,1.0]
[1727199275633,1.24,2648.1,2647.9,1.8228]
[1727199277555,1.24,2648.1,2647.9,1.0]
[1727199277934,5.0163,2648.1,2647.9,1.0]
[1727199278450,1.24,2648.1,2647.9,1.0]
[1727199278617,1.24,2648.1,2647.9,5.254181]
[1727199279431,1.24,2648.1,2648.0,0.8228]
[1727199279761,5.01588,2648.4,2648.0,0.8228]
[1727199281348,8.79183,2648.4,2648.0,0.8228]
[1727199281715,5.01588,2648.4,2648.0,0.8228]
[1727199281919,3.77601,2648.3,2648.0,0.8228]
[1727199286163,3.77622,2648.2,2647.9,1.0]
[1727199286880,1.24,2648.4,2648.2,3.77613]
[1727199287205,3.77551,2648.7,2648.3,4.67431666]
[1727199287206,1.24,2648.7,2648.3,4.67431666]
[1727199287363,1.24,2648.8,2648.3,4.87268215]
[1727199287566,7.4179568,2649.1,2648.3,4.87268215]
[1727199287567,1.2779568,2649.1,2648.5,3.77569]
[1727199287725,1.2779568,2649.1,2648.6,0.8041]
[1727199287927,5.0528168,2649.1,2648.6,0.8041]
[1727199288325,3.77508,2649.0,2648.4,0.8041]
[1727199288660,3.77508,2649.0,2648.5,3.7757]
[1727199288954,3.77508,2649.0,2648.4,5.35089338]
[1727199289159,3.77523,2648.9,2648.4,5.35089338]
[1727199289542,3.77505,2649.0,2648.5,3.77571]
[1727199289843,3.77542,2648.8,2648.4,1.57503338]
[1727199290157,3.77554,2648.7,2648.1,8.2141]
[1727199290358,3.77572,2648.5,2648.1,8.2141]
[1727199290668,3.77572,2648.5,2648.1,11.99037]
[1727199290967,3.77558,2648.6,2648.1,11.99037]
[1727199291149,3.77558,2648.6,2648.1,13.91538638]
[1727199291355,3.77554,2648.7,2648.2,3.77606]
[1727199291530,3.77529,2648.8,2648.4,0.8041]
[1727199291840,3.77508,2649.0,2648.5,3.12933382]
[1727199292040,5.0529068,2649.1,2648.4,1.263748]
[1727199292369,5.0529068,2649.1,2648.4,5.039568]
[1727199292747,5.0529068,2649.1,2648.5,3.77571]
[1727199293076,5.0529068,2649.1,2648.5,4.335667]
[1727199293370,1.2779568,2649.1,2649.0,4.5791]
[1727199293949,1.2779568,2649.1,2649.0,0.8041]
[1727199295080,1.2779568,2649.1,2649.0,4.5791]
[1727199295438,1.2779568,2649.1,2649.0,0.8041]
[1727199295838,1.2779568,2649.1,2649.0,5.037016]
[1727199296039,1.2779568,2649.1,2649.0,8.037016]
[1727199300199,0.0379568,2649.9,2649.8,3.77386]
[1727199300492,0.0379568,2649.9,2649.8,10.70729382]
[1727199300677,0.0379568,2649.9,2649.8,7.70729382]
[1727199300863,0.0379568,2649.9,2649.8,4.57796]
[1727199301269,0.0379568,2649.9,2649.8,0.8041]
[1727199301471,0.0379568,2649.9,2649.8,3.12933382]
[1727199301675,0.0379568,2649.9,2649.8,7.5935332]
[1727199302387,0.0379568,2649.9,2649.8,0.69033938]
[1727199302591,0.0379568,2649.9,2649.8,4.46419938]
[1727199302899,0.0379568,2649.9,2649.8,7.5935332]
[1727199303567,0.0379568,2649.9,2649.8,0.69033938]
[1727199304255,3.77403,2649.7,2649.3,0.7931]
[1727199304571,0.0379568,2649.9,2649.6,3.77407]
[1727199304767,0.0379568,2649.9,2649.7,6.97872654]
[1727199305180,0.0379568,2649.9,2649.7,3.20480654]
[1727199305476,0.0379568,2649.9,2649.8,0.77720265]
[1727199305675,0.0379568,2649.9,2649.8,4.55106265]
[1727199306416,0.0379568,2649.9,2649.8,0.77720265]
[1727199306724,0.0379568,2649.9,2649.7,3.12933382]
[1727199306725,0.8380568,2649.9,2649.2,3.7931]
[1727199307022,3.77402,2649.7,2649.2,4.56782]
[1727199307310,0.0379568,2649.9,2649.6,3.12933382]
[1727199307475,0.0379568,2649.9,2649.7,1.48345538]
[1727199307671,0.0379568,2649.9,2649.8,3.12933382]
[1727199308012,0.0379568,2649.9,2649.7,1.48345538]
[1727199308213,0.0379568,2649.9,2649.8,3.77386]
[1727199308420,0.0379568,2649.9,2649.8,4.98993192]
[1727199308715,0.0379568,2649.9,2649.8,8.11926574]
[1727199310599,0.0379568,2649.9,2649.8,8.91236574]
[1727199311121,0.0379568,2649.9,2649.8,11.91236574]
[1727199311324,0.0379568,2649.9,2649.8,8.78303192]
[1727199311484,0.0379568,2649.9,2649.8,5.78303192]
[1727199311687,0.0379568,2649.9,2649.8,8.91236574]
[1727199312120,0.0379568,2649.9,2649.8,11.91236574]
[1727199313428,0.0379568,2649.9,2649.8,8.78303192]
[1727199314638,0.0379568,2649.9,2649.8,1.21607192]
[1727199315132,0.0379568,2649.9,2649.8,4.98993192]
[1727199315349,0.0379568,2649.9,2649.8,8.11926574]
[1727199315493,0.0379568,2649.9,2649.8,11.91236574]
[1727199315936,0.3,2650.0,2649.8,11.66926574]
[1727199316144,0.0379568,2651.4,2650.5,10.69530382]
[1727199316330,0.0379568,2651.4,2650.6,3.0]
[1727199316508,0.0379568,2651.4,2651.0,3.77205]
[1727199316709,0.0379568,2651.4,2651.2,0.7931]
[1727199316925,0.0379568,2651.4,2651.0,3.77214]
[1727199317267,0.0379568,2651.4,2651.3,3.12933382]
[1727199317433,0.0379568,2651.4,2651.1,3.12933382]
[1727199317737,0.0379568,2651.4,2651.1,6.90123382]
[1727199317940,0.0379568,2651.4,2651.1,7.9394279]
[1727199318155,0.0379568,2651.4,2651.3,3.12933382]
[1727199318301,0.0379568,2651.4,2651.3,3.7931]
[1727199318511,0.0379568,2651.4,2650.9,7.60063]
[1727199319031,0.0379568,2651.4,2650.8,3.77239]
[1727199319206,3.77188,2651.2,2650.6,0.8284]
[1727199319411,3.77228,2651.0,2650.3,0.8284]
[1727199319610,3.77245,2650.8,2650.3,0.8284]
[1727199319959,3.77245,2650.8,2649.9,7.41]
[1727199319960,3.7725,2650.8,2649.9,0.8284]
[1727199320247,3.7725,2650.8,2650.0,0.58845399]
[1727199320454,3.7725,2650.8,2650.1,3.840068]
[1727199320753,3.8095668,2651.4,2650.6,3.77272]
[1727199321060,3.7719,2651.2,2650.6,3.77272]
[1727199321260,3.77211,2651.1,2650.5,3.8284]
[1727199321427,4.54234,2651.3,2650.6,3.77271]
[1727199321624,3.77203,2651.1,2650.5,4.9725368]
[1727199322047,0.7705,2651.3,2650.5,1.1441368]
[1727199322370,0.7705,2651.3,2650.7,3.77258]
[1727199323220,0.7705,2651.3,2650.5,3.0]
[1727199323436,4.54225,2651.3,2650.6,3.77263]
[1727199323665,4.54225,2651.3,2650.6,7.54523]
[1727199323834,4.54225,2651.3,2650.6,3.7726]
[1727199324033,3.77197,2651.2,2650.6,5.2111598]
[1727199324363,3.77217,2651.0,2650.5,3.0]
[1727199324803,0.0379568,2651.4,2650.8,3.77235]
[1727199325067,7.5437,2651.3,2650.6,4.60112]
[1727199325267,3.77185,2651.3,2650.7,4.532672]
[1727199325559,0.0379568,2651.4,2650.9,3.77228]
[1727199325861,0.0379568,2651.4,2650.7,0.760112]
[1727199325862,3.77175,2651.3,2650.7,4.532682]
[1727199326033,3.77188,2651.2,2650.7,0.760112]
[1727199326347,3.77175,2651.3,2650.7,4.532612]
[1727199326549,3.77175,2651.3,2650.8,3.77243]
[1727199326730,0.0379568,2651.4,2650.8,3.77243]
[1727199326929,3.77237,2650.9,2650.4,0.8284]
[1727199327237,0.05893112,2650.9,2649.8,0.8284]
[1727199327568,3.77289,2650.5,2650.0,3.77356]
[1727199327774,3.77289,2650.5,2650.0,4.611125]
[1727199327960,3.77304,2650.4,2649.8,4.60212]
[1727199328131,3.77294,2650.5,2650.0,3.77357]
[1727199328332,3.77264,2650.7,2650.0,3.77357]
[1727199328660,3.77264,2650.7,2650.1,3.77344]
[1727199328867,3.77282,2650.6,2650.1,4.150784]
[1727199329039,3.77264,2650.7,2650.1,4.150784]
[1727199329569,3.77264,2650.7,2650.1,4.150704]
[1727199329741,3.77264,2650.7,2650.2,3.77321]
[1727199329926,3.77264,2650.7,2649.6,3.0]
[1727199329927,4.54388,2650.2,2649.6,3.77407]
[1727199330267,8.31731,2650.2,2649.6,3.77407]
[1727199330429,4.54388,2650.2,2649.7,0.460247]
[1727199330931,8.31727,2650.2,2649.7,0.460247]
[1727199331126,8.31727,2650.2,2649.2,4.60304]
[1727199331127,0.7705,2650.2,2649.2,4.60304]
[1727199331329,0.7705,2650.2,2649.0,3.77498]
[1727199331330,3.77432,2649.5,2649.0,3.77498]
[1727199331545,3.77453,2649.4,2648.9,0.8284]
[1727199331744,3.77453,2649.4,2649.0,0.460359]
[1727199331971,7.54853,2649.6,2649.0,3.86635715]
[1727199332179,3.77424,2649.6,2649.0,3.86635715]
[1727199332355,3.77424,2649.6,2649.1,3.77483]
[1727199332678,3.77424,2649.6,2649.0,3.86628715]
[1727199333130,3.77375,2649.9,2649.3,3.77449]
[1727199333336,3.77375,2649.9,2649.1,1.19322871]
[1727199333337,4.58181,2649.7,2649.1,4.96800871]
[1727199333562,4.58181,2649.7,2649.4,0.08753499]
[1727199333776,3.77423,2649.6,2649.1,0.38662871]
[1727199333978,3.77436,2649.5,2649.1,0.38662871]
[1727199334275,3.77423,2649.6,2649.2,0.41615387]
[1727199334430,3.77445,2649.4,2648.9,3.0]
[1727199334633,3.77445,2649.4,2648.8,4.58181]
[1727199334865,3.77445,2649.4,2648.8,3.7752]
[1727199335174,3.77383,2649.9,2649.4,3.77434]
[1727199335330,3.77383,2649.9,2649.2,3.77458]
[1727199335331,8.35548,2649.9,2649.2,3.77458]
[1727199335538,8.35545,2649.9,2649.3,3.77457]
[1727199335755,3.77391,2649.8,2649.2,7.54921]
[1727199335961,3.77346,2650.1,2649.4,3.77439]
[1727199336181,3.77354,2650.1,2649.6,3.77403]
[1727199336831,3.77353,2650.1,2649.6,3.77403]
[1727199337074,3.77353,2650.1,2649.6,4.528871]
[1727199337294,0.8078,2650.2,2649.8,6.77378]
[1727199337647,0.8078,2650.2,2649.8,3.0]
[1727199338465,0.8078,2650.2,2649.9,3.77371]
[1727199338843,0.8078,2650.2,2649.8,6.77386]
[1727199339063,0.8078,2650.2,2649.9,1.14261097]
[1727199339248,0.8078,2650.2,2649.9,4.91623097]
[1727199339883,3.77287,2650.5,2650.0,3.77352]
[1727199340082,3.77287,2650.5,2650.1,0.08780862]
[1727199340083,0.8078,2650.4,2650.1,0.08780862]
[1727199340282,0.8078,2650.4,2649.9,3.77362]
[1727199340483,4.58083,2650.4,2650.0,0.08782129]
[1727199342387,8.35393,2650.4,2650.0,0.08782129]
[1727199342751,3.77344,2650.1,2650.0,0.08782129]
[1727199343196,3.77318,2650.3,2649.8,3.77383]
[1727199343363,3.77318,2650.3,2650.0,0.08779149]
[1727199343602,3.77318,2650.3,2649.9,0.08782404]
[1727199343892,0.8078,2650.4,2650.0,0.08781136]
[1727199344096,3.77331,2650.2,2650.0,0.08781136]
[1727199344253,0.05893112,2650.1,2649.1,11.99137]
[1727199344463,3.77432,2649.5,2649.2,0.08503444]
[1727199344800,3.77445,2649.4,2648.9,4.95922]
[1727199345090,3.77445,2649.4,2649.0,0.495922]
[1727199345395,3.77445,2649.4,2649.1,0.08215404]
[1727199345759,3.77466,2649.3,2649.1,0.08215404]
[1727199346283,3.77466,2649.3,2649.2,0.08130396]
[1727199346506,3.77466,2649.3,2648.8,3.77525]
[1727199346656,3.77466,2649.3,2649.2,0.08146741]
[1727199346855,3.77466,2649.3,2648.9,0.458185]
[1727199347056,7.54932,2649.3,2649.0,0.08149774]
[1727199347257,3.77466,2649.3,2649.0,0.08149774]
[1727199347784,3.77446,2649.4,2649.0,0.51298701]
[1727199348421,4.58197,2649.6,2649.0,4.28794701]
[1727199348568,4.58526,2650.0,2649.5,3.77429]
[1727199348773,0.8116,2650.0,2649.6,0.377429]
[1727199348972,0.8116,2650.3,2649.9,3.77364]
[1727199349270,3.77295,2650.5,2650.0,3.85495074]
[1727199349584,4.58447,2650.6,2650.0,3.85490074]
[1727199349797,4.58447,2650.6,2650.0,7.62839074]
[1727199350106,4.58447,2650.6,2650.1,3.77343]
[1727199350308,3.77288,2650.5,2650.0,3.85488074]
[1727199350608,3.77288,2650.5,2649.7,0.7612]
[1727199350609,3.77288,2650.5,2650.2,0.08108307]
[1727199350911,3.77288,2650.5,2650.3,0.08088225]
[1727199351130,7.54587,2650.5,2650.3,0.08088225]
[1727199351315,3.77329,2650.3,2649.7,6.77399]
[1727199351501,3.77334,2650.2,2649.6,3.77406]
[1727199351667,7.54673,2650.2,2649.6,4.605021]
[1727199351865,3.77347,2650.1,2649.6,4.605021]
[1727199352104,0.8116,2650.1,2649.7,3.774]
[1727199352415,4.58505,2650.1,2649.6,4.605021]
[1727199352771,0.8116,2650.4,2649.8,3.77386]
[1727199352976,0.8116,2650.4,2649.9,3.77368]
[1727199353571,4.58469,2650.4,2649.8,3.77386]
[1727199353775,4.58469,2650.4,2649.9,3.77365]
[1727199354315,4.58469,2650.4,2650.0,0.08102424]
[1727199355419,1.270069,2650.4,2650.0,0.08102424]
[1727199355618,4.58504,2650.1,2650.0,0.08102424]
[1727199355917,3.77381,2649.9,2649.4,7.41]
[1727199356082,3.77381,2649.9,2649.2,3.7746]
[1727199356283,4.58576,2649.6,2649.2,3.7746]
[1727199356486,0.8116,2649.6,2649.2,3.7746]
[1727199356919,3.77446,2649.4,2648.9,4.53625]
[1727199357125,3.77446,2649.4,2648.9,4.969675]
[1727199357327,3.77446,2649.4,2648.9,3.77505]
[1727199357624,3.77446,2649.4,2648.9,7.55013]
[1727199357788,3.77446,2649.4,2648.8,3.77528]
[1727199358116,3.77446,2649.4,2648.9,3.77512]
[1727199358621,3.7746,2649.3,2648.7,7.5507]
[1727199358840,3.77444,2649.4,2648.9,3.77505]
[1727199359523,0.8116,2649.6,2649.1,3.77476]
[1727199359724,0.8116,2649.6,2649.1,0.754975]
[1727199359897,0.8116,2649.6,2649.3,3.77448]
[1727199360336,3.77367,2650.0,2649.5,3.77423]
[1727199360510,0.8116,2650.1,2649.6,3.77414]
[1727199360698,5.043533,2650.1,2649.6,3.77414]
[1727199360893,3.77359,2650.0,2649.6,3.77414]
[1727199361131,5.043533,2650.1,2649.4,3.77436]
[1727199361132,3.77372,2649.9,2649.4,3.77436]
[1727199361343,3.77372,2649.9,2649.2,3.77462]
[1727199361634,3.77422,2649.6,2649.1,6.77479]
[1727199361831,0.8116,2649.8,2649.3,3.77447]
[1727199362140,0.8116,2649.8,2649.5,3.77428]
[1727199362494,0.8116,2649.8,2649.3,3.77447]
[1727199362702,0.8116,2649.8,2649.1,3.77478]
[1727199362703,3.77416,2649.6,2649.1,3.77478]
[1727199362937,3.77402,2649.7,2649.3,3.77457]
[1727199363436,3.77402,2649.7,2648.9,0.7612]
[1727199363437,3.77453,2649.4,2648.9,3.77502]
[1727199363594,0.7944,2649.5,2648.9,3.77502]
[1727199363799,0.7944,2649.5,2648.6,0.8226]
[1727199363800,0.7944,2649.5,2649.2,3.77463]
[1727199363996,0.7944,2649.7,2649.2,3.77463]
[1727199364424,4.56841,2649.7,2649.2,3.77463]
[1727199364630,3.77366,2650.0,2649.4,3.77443]
[1727199364847,4.56806,2650.0,2649.4,3.77443]
[1727199364997,3.77374,2649.9,2649.4,3.77443]
[1727199365337,8.34173,2650.0,2649.5,0.06865753]
[1727199365713,1.18607671,2650.3,2649.5,0.06865753]
[1727199365905,3.77342,2650.2,2649.7,3.77392]
[1727199366101,4.5675,2650.4,2649.8,0.06861949]
[1727199366341,0.7944,2650.4,2649.8,0.06861949]
[1727199366541,3.7734,2650.2,2649.7,3.774]
[1727199366747,8.34065,2650.4,2649.9,0.06860681]
[1727199366948,4.56751,2650.4,2649.8,3.84247949]
[1727199367222,4.56751,2650.4,2649.6,4.59667]
[1727199367223,4.56751,2650.4,2650.0,0.06859414]
[1727199367413,3.77341,2650.2,2650.1,0.06858146]
[1727199367627,4.229901,2650.3,2650.1,0.06858146]
[1727199367945,0.7944,2649.9,2649.4,3.77433]
[1727199368150,3.77387,2649.8,2649.3,0.8226]
[1727199368302,1.98047671,2650.4,2649.8,0.8226]
[1727199368502,3.77324,2650.3,2649.8,4.59639]
[1727199368715,0.7944,2650.4,2649.8,0.8226]
[1727199368909,3.77315,2650.3,2649.7,3.77389]
[1727199369114,3.77337,2650.2,2649.7,3.77389]
[1727199369338,4.56749,2650.4,2649.8,0.06842632]
[1727199369697,4.56749,2650.4,2649.8,3.84218632]
[1727199369991,4.56749,2650.4,2649.9,3.77371]
[1727199370240,4.56749,2650.4,2649.8,3.84221632]
[1727199370402,3.77331,2650.2,2650.0,0.06834649]
[1727199370601,7.54669,2650.2,2650.1,0.06825954]
[1727199370801,3.77331,2650.2,2650.1,0.06825954]
[1727199371034,3.77331,2650.2,2649.5,3.77417]
[1727199371035,3.77363,2650.0,2649.5,3.77417]
[1727199371243,3.77363,2650.0,2649.5,4.611296]
[1727199371470,3.77363,2650.0,2649.3,4.59709]
[1727199371471,0.7944,2650.0,2649.6,0.06832788]
[1727199371736,3.77373,2649.9,2649.3,4.59709]
[1727199371942,3.77373,2649.9,2649.7,0.06838453]
[1727199372144,3.77394,2649.8,2649.3,4.59709]
[1727199372299,7.5479,2649.8,2649.3,4.59709]
[1727199372752,3.77394,2649.8,2649.2,3.0]
[1727199372928,3.77415,2649.6,2649.1,3.77481]
[1727199373129,3.77415,2649.6,2649.1,4.612056]
[1727199373436,3.77415,2649.6,2649.1,4.612036]
[1727199373853,4.56883,2649.5,2649.1,0.837246]
[1727199374062,3.77466,2649.3,2648.8,4.59776]
[1727199374569,4.56872,2649.5,2649.0,3.77498]
[1727199374718,8.34312,2649.5,2649.1,0.377498]
[1727199374922,8.34312,2649.5,2648.6,4.59808]
[1727199374923,3.77487,2649.1,2648.6,4.59808]
[1727199375221,4.56841,2649.7,2649.2,3.77463]
[1727199375442,4.56841,2649.7,2649.3,0.754939]
[1727199375641,4.56841,2649.7,2649.2,3.77469]
[1727199376134,4.56841,2649.7,2649.3,3.77456]
[1727199376458,0.7944,2649.7,2649.4,3.77435]
[1727199376623,1.18607671,2649.9,2649.6,3.77405]
[1727199376935,0.7944,2650.0,2649.6,3.77405]
[1727199377122,0.7944,2650.0,2649.6,4.53641957]
[1727199377568,1.18607671,2650.1,2649.7,3.774]
[1727199377761,1.18607671,2650.1,2649.6,0.83784537]
[1727199377973,4.95952671,2650.1,2649.6,0.76236957]
[1727199378275,3.77366,2650.0,2649.6,0.76236957]
[1727199378626,3.77373,2649.9,2649.4,3.77436]
[1727199378944,3.77358,2650.0,2649.5,3.77417]
[1727199379149,3.77358,2650.0,2649.6,0.754853]
[1727199379467,3.77383,2649.9,2649.4,3.77436]
[1727199380649,3.77427,2649.6,2648.9,4.59774]
[1727199380836,0.7944,2649.7,2649.2,3.77465]
[1727199381166,4.56848,2649.7,2649.2,3.77472]
[1727199381373,4.56848,2649.7,2648.9,0.8226]
[1727199381374,3.7743,2649.5,2649.0,3.77493]
[1727199381583,3.7743,2649.5,2649.0,3.837257]
[1727199381804,3.77449,2649.4,2649.0,3.837257]
[1727199382077,3.77469,2649.3,2649.0,3.837257]
[1727199382285,3.77469,2649.3,2648.7,7.5507]
[1727199382286,7.54938,2649.3,2648.7,7.5507]
[1727199382488,1.18607671,2649.5,2648.6,0.8226]
[1727199382489,0.7944,2649.2,2648.6,0.8226]
[1727199382779,3.77488,2649.1,2648.3,4.6364568]
[1727199382940,3.77488,2649.1,2648.5,3.77564]
[1727199382941,3.77509,2649.0,2648.5,3.77564]
[1727199383137,3.77532,2648.8,2648.3,4.6364568]
[1727199383387,3.77552,2648.7,2648.3,0.0379568]
[1727199383973,3.77526,2648.9,2648.3,3.8138668]
[1727199384277,3.77545,2648.7,2648.4,0.06672331]
[1727199384840,4.56985,2648.7,2648.4,0.06672331]
[1727199385041,0.7944,2648.7,2648.4,0.06672331]
[1727199385247,3.77565,2648.6,2648.4,0.06672331]
[1727199385499,4.56984,2648.7,2648.4,0.06672331]
[1727199385789,9.42423912,2649.4,2648.8,3.7752]
[1727199385790,1.18607671,2649.3,2648.8,3.7752]
[1727199386093,1.98047671,2649.6,2649.2,3.77471]
[1727199386387,0.7944,2649.6,2649.3,0.06694609]
[1727199386748,0.7944,2649.6,2649.2,3.77471]
[1727199386944,0.7944,2649.6,2649.4,0.0669334]
[1727199386945,4.56857,2649.6,2649.4,0.0669334]
[1727199387147,0.7944,2649.6,2649.3,0.06694609]
[1727199387367,0.7944,2649.6,2649.5,0.06692072]
[1727199387561,0.7944,2649.6,2649.4,0.0669334]
[1727199387785,0.7944,2649.6,2649.5,0.06692072]
[1727199387977,4.56855,2649.6,2649.5,0.06692072]
[1727199388163,4.56855,2649.6,2649.1,3.77486]
[1727199388363,4.56855,2649.6,2649.5,0.06692072]
[1727199388571,4.56855,2649.6,2649.1,3.77486]
[1727199388800,4.56855,2649.6,2649.5,0.06692072]
[1727199388995,4.56855,2649.6,2649.1,3.77486]
[1727199389200,4.56855,2649.6,2649.5,0.06692072]
[1727199389368,3.77436,2649.5,2649.0,4.59753]
[1727199390028,3.77436,2649.5,2648.8,4.15272]
[1727199390166,0.7944,2649.6,2648.8,0.37752]
[1727199390167,3.77466,2649.3,2648.8,0.37752]
[1727199390369,3.77484,2649.2,2648.7,3.77537]
[1727199390808,3.77484,2649.2,2648.8,3.77528]
[1727199391003,1.18607671,2649.5,2648.6,4.5981]
[1727199391209,3.77479,2649.2,2648.7,3.77536]
[1727199391385,3.77479,2649.2,2648.7,3.77541]
[1727199391889,3.77479,2649.2,2648.6,5.35791]
[1727199392068,0.7944,2649.0,2648.6,4.53531]
[1727199392270,0.7944,2649.0,2648.6,0.75981]
[1727199392466,0.7944,2649.0,2648.6,4.5353]
[1727199393384,0.7944,2649.0,2648.7,3.77532]
[1727199393598,3.77459,2649.3,2648.7,3.77532]
[1727199393599,3.77473,2649.2,2648.7,3.77532]
[1727199393805,3.77473,2649.2,2648.7,7.55069]
[1727199393992,4.58139,2649.3,2648.8,3.77521]
[1727199394195,1.99287671,2649.6,2649.0,0.7982]
[1727199394395,4.58107,2649.6,2649.0,4.64861968]
[1727199394710,3.77445,2649.4,2649.0,4.23979197]
[1727199394912,3.77459,2649.3,2648.8,3.7752]
[1727199395087,3.77459,2649.3,2648.9,3.77511]
[1727199395289,3.77444,2649.4,2648.9,3.77511]
[1727199396694,3.77466,2649.3,2648.8,3.7752]
[1727199396928,3.77466,2649.3,2648.8,8.385301]
[1727199397219,3.77466,2649.3,2648.8,7.55041]
[1727199397421,4.96045671,2649.5,2649.0,3.77498]
[1727199397584,3.77438,2649.5,2649.0,3.77498]
[1727199397785,3.77444,2649.4,2649.0,3.77498]
[1727199397980,5.76713671,2649.6,2649.0,0.755018]
[1727199397981,1.18607671,2649.6,2649.0,0.755018]
[1727199398248,4.74223569,2650.1,2649.9,3.77359]
[1727199398534,1.18607671,2650.3,2649.9,3.77364]
[1727199398681,3.77385,2649.9,2649.3,4.57269]
[1727199398882,3.77385,2649.9,2649.5,3.77427]
[1727199398883,0.8068,2649.9,2649.5,3.77427]
[1727199399078,0.8068,2649.9,2649.6,0.06427141]
[1727199399333,1.18607671,2650.1,2649.6,0.06427141]